[Event "13th Chennai Open 2022"]
[Site "Chennai"]
[Date "2022.06.21"]
[Round "4.5"]
[White "Srihari L R"]
[Black "Tiwari, Arjun"]
[Result "1-0"]
[ECO "E63"]
[WhiteElo "2404"]
[BlackElo "2163"]
[Annotator "TA"]
[PlyCount "73"]
[EventDate "2022.06.19"]
[EventType "swiss"]
[EventCountry "IND"]
[SourceTitle "playchess.com"]
[Source "ChessBase"]
[SourceQuality "1"]
[TimeControl "5400+30"]

{[%evp 16,73,37,38,43,31,42,32,41,34,56,51,53,54,56,49,59,53,59,42,56,69,91,92,193,189,229,222,225,218,306,307,296,284,285,277,398,388,541,557,554,535,549,526,523,527,652,637,625,625,1460,1637,1548,1545,1545,1475,1465,1467,842,706]} 1. d4 {[%emt 0:00:20]} Nf6 {[%emt 0:00:11]} 2. c4 {[%emt 0:00:10]} g6 {[%emt 0:00:06]} 3. g3 {[%emt 0:00:08]} Bg7 {[%emt 0:00:06]} 4. Bg2 {[%emt 0:00:07]} O-O {[%emt 0:00:06]} 5. Nc3 {[%emt 0:00:06]} d6 {[%emt 0:00:06]} 6. Nf3 {[%emt 0:00:08]} Nc6 {[%emt 0:00:16]} 7. O-O {[%emt 0:00:09]} a6 {[%emt 0:00:07] 7...e5 gains popularity.} 8. b3 {[%emt 0:00:08]} e5 {[%emt 0:00:31]} 9. dxe5 {[%emt 0:07:33]} dxe5 {[%emt 0:06:35] E63: King's Indian: Fianchetto: Panno Variation with 7...a6.} 10. Ba3 {[%emt 0:11:50]} Re8 {[%emt 0:00:31]} 11. Qxd8 {[%emt 0:00:23]} Nxd8 {[%emt 0:00:21] White is slightly better.} 12. Rad1 {[%emt 0:00:21][%cal Of3e5] [#]} Bg4 $146 {[%emt 0:04:19]} ({Predecessor:} 12... e4 13. Nd4 b6 14. e3 Bb7 15. Rd2 c5 16. Nde2 Bf8 17. Nf4 Ne6 18. Nfd5 Nxd5 19. Nxd5 Bxd5 20. Rxd5 {½-½ (35) Iskusnyh,S (2473)-Anton Guijarro,D (2673) Chess.com INT 2021}) 13. Nd2 {[%emt 0:08:45]} h5 {[%emt 0:02:49]} 14. h3 {[%emt 0:03:38]} Bf5 {[%emt 0:05:05]} 15. Nd5 {[%emt 0:02:21]} Nxd5 {[%emt 0:02:24]} 16. cxd5 {[%emt 0:00:35]} e4 {[%emt 0:05:45]} 17. Rc1 {[%emt 0:13:59]} Rc8 {[%emt 0:05:55]} 18. e3 {[%emt 0:01:01]} b5 {[%emt 0:19:07] White leaves nothing to chance now.} 19. Bb4 {[%emt 0:18:50][%cal Og3g4]} c6 {[%emt 0:13:59] [#]} (19... Nb7 $16) 20. g4 $1 $18 {[%emt 0:00:51]} hxg4 {[%emt 0:15:09]} 21. hxg4 {[%emt 0:00:14][%cal Bh3g4,Bg4g5,Bg5f6][%mdl 32]} Bd7 {[%emt 0:00:49]} 22. Nxe4 {[%emt 0:00:37] Hoping for Nd6.} a5 {[%emt 0:00:29]} (22... Nb7 $142 23. Nd6 Nxd6) 23. Bxa5 {[%emt 0:02:34]} Nb7 {[%emt 0:01:38] Inhibits Nd6.} 24. dxc6 {[%emt 0:00:29]} Bxc6 {[%emt 0:06:02]} 25. Bb4 {[%emt 0:00:09][%cal Oe4f6] And now Nf6+! would win.} Bd7 {[%emt 0:01:33]} (25... Bxe4 {was worth a try.} 26. Rxc8 Rxc8) 26. g5 {[%emt 0:01:36]} Bb2 {[%emt 0:03:15]} 27. Nf6+ {[%emt 0:01:13] White is clearly winning.} Bxf6 {[%emt 0:00:04]} 28. gxf6 {[%emt 0:00:10]} Nd8 {[%emt 0:00:40]} 29. Rxc8 {[%emt 0:00:10]} Bxc8 {[%emt 0:00:02]} 30. Rc1 {[%emt 0:00:33]} Bf5 {[%emt 0:01:29]} 31. a4 {[%emt 0:01:17]} bxa4 {[%emt 0:00:07]} 32. bxa4 {[%emt 0:00:04][%cal Bb3a4,Ba4a5,Ba5a6][%mdl 32]} Be4 {[%emt 0:01:02]} 33. Rc8 {[%emt 0:00:07] Be7 is the strong threat.} Bf5 {[%emt 0:03:09]} 34. Rb8 {[%emt 0:00:07] Threatens to win with a5.} Bd7 {[%emt 0:00:02]} 35. a5 {[%emt 0:00:09] aiming for a6.} Nc6 {[%emt 0:00:09]} 36. Rxe8+ {[%emt 0:00:05]} Bxe8 {[%emt 0:00:05] [#]} 37. a6 $1 {[%emt 0:00:04] Weighted Error Value: White=0.02 (flawless) /Black=0.38} 1-0

[Event "13th Chennai Open 2022"]
[Site "Chennai"]
[Date "2022.06.21"]
[Round "4.6"]
[White "Srijit Paul"]
[Black "Nguyen, Thanh Thuy Tien"]
[Result "1-0"]
[ECO "B92"]
[WhiteElo "2399"]
[BlackElo "1996"]
[Annotator "TA"]
[PlyCount "49"]
[EventDate "2022.06.19"]
[EventType "swiss"]
[EventCountry "IND"]
[SourceTitle "playchess.com"]
[Source "ChessBase"]
[SourceQuality "1"]
[TimeControl "5400+30"]

{[%evp 16,49,12,13,20,27,18,0,23,7,14,7,110,113,95,99,128,131,135,133,292,285,521,425,591,583,669,670,1174,1143,29990,29991,29995,29996,29996,29997]} 1. e4 {[%emt 1:31:00]} c5 {[%emt 0:00:07]} 2. Nf3 {[%emt 1:31:21]} d6 {[%emt 0:00:08]} 3. d4 {[%emt 0:00:18]} cxd4 {[%emt 0:00:09]} 4. Nxd4 {[%emt 0:00:05]} Nf6 {[%emt 0:00:12]} 5. Nc3 {[%emt 0:00:06]} a6 {[%emt 0:00:21]} 6. Be2 {[%emt 0:00:37]} e5 {[%emt 0:00:19]} 7. Nf3 {[%emt 0:02:41]} h6 {[%emt 0:00:16]} 8. O-O {[%emt 0:00:13]} Be6 {[%emt 0:00:54]} 9. Re1 {[%emt 0:00:38]} Nbd7 {[%emt 0:01:25] B92: Sicilian Najdorf: 6 Be2.} 10. a4 {[%emt 0:00:14][%cal Ba2a4,Ba4a5][%mdl 32]} Rc8 {[%emt 0:01:37][%cal Oc8c3]} 11. Bf1 {[%emt 0:07:00] [#]} Nb6 $146 {[%emt 0:04:15] The position is equal.} ({Predecessor:} 11... Be7 12. g3 O-O 13. Bg2 Nb6 14. h3 Qc7 15. Nh4 Rfd8 16. a5 Nc4 17. Nd5 Nxd5 18. exd5 {½-½ (29) Van der Wiel,J (2535)-Van Gaalen,B (2375) Netherlands 1996}) 12. Qd3 {[%emt 1:24:20]} (12. a5 $5 {[%cal Ra5b6]} Nbd7 13. Nd5 $11) 12... Qc7 {[%emt 0:03:16]} 13. a5 {[%emt 0:03:26]} Nc4 {[%emt 0:06:41]} (13... Nbd7 $1 $11) 14. Nd5 $16 {[%emt 0:00:10]} Bxd5 {[%emt 0:01:02]} 15. exd5 {[%emt 0:00:05]} e4 {[%emt 0:18:23]} 16. Nd2 $36 {[%emt 0:11:20][%mdl 2048] White has strong initiative.} Nxd2 {[%emt 0:05:06]} 17. Bxd2 {[%emt 0:00:41][%cal Bc1d2,Bd2c3,Bc3f6][%mdl 32]} Qxc2 $2 {[%emt 0:10:52]} (17... Be7 $16 18. Qe3 O-O) 18. Qh3 $18 {[%emt 0:08:02]} ({Much less strong is} 18. Rac1 $6 Qxd3 19. Rxc8+ Kd7 $18) 18... Rd8 $2 {[%emt 0:07:01] [#]} (18... Be7 {was worth a try.} 19. Rec1 Qxd2 20. Qxc8+ Bd8 21. Qxb7 O-O) 19. Bc3 $1 {[%emt 0:01:40]} Be7 {[%emt 0:02:24]} 20. Bc4 {[%emt 0:00:28] Inhibits Qb3.} e3 {[%emt 0:07:02]} 21. Rxe3 {[%emt 0:07:16]} Qg6 {[%emt 0:05:38]} 22. Rae1 {[%emt 0:00:06]} Rd7 {[%emt 0:00:52] [#]} 23. Rxe7+ $1 {[%emt 0:00:15][%mdl 512] White mates.} Kd8 {[%emt 0:00:46]} (23... Kf8 24. Qxd7) 24. Bxf6 {[%emt 0:00:11][%csl Ge7][%cal Rh3d7]} Rxe7 {[%emt 0:00:24]} 25. Rxe7 {[%emt 0:00:26] White took control after the opening.  Weighted Error Value: White=0.02 (flawless) /Black=1.04} 1-0

[Event "13th Chennai Open 2022"]
[Site "Chennai"]
[Date "2022.06.21"]
[Round "4.7"]
[White "Ravichandran, Siddharth"]
[Black "Pawar, Harshit"]
[Result "1/2-1/2"]
[ECO "C00"]
[WhiteElo "2352"]
[BlackElo "1961"]
[Annotator "TA"]
[PlyCount "66"]
[EventDate "2022.06.19"]
[EventType "swiss"]
[EventCountry "IND"]
[SourceTitle "playchess.com"]
[Source "ChessBase"]
[SourceQuality "1"]
[TimeControl "5400+30"]

{[%evp 16,66,0,0,0,-5,11,-7,14,0,4,20,14,0,0,0,0,0,0,0,20,25,61,0,0,0,0,0,26,26,39,24,27,17,20,28,40,37,53,53,54,14,14,14,14,21,29,2,2,2,2,-3,5]} 1. e4 {[%emt 0:00:10]} e6 {[%emt 0:00:06]} 2. d3 {[%emt 0:00:40]} d5 {[%emt 0:00:04]} 3. Nd2 {[%emt 0:00:04]} c5 {[%emt 0:00:03]} 4. Ngf3 {[%emt 0:00:10]} Nc6 {[%emt 0:00:05]} 5. g3 {[%emt 0:00:08]} Nf6 {[%emt 0:00:16]} 6. Bg2 {[%emt 0:00:05]} Be7 {[%emt 0:00:13]} 7. O-O {[%emt 0:00:10]} b6 {[%emt 0:00:34]} 8. Re1 {[%emt 0:01:12]} Bb7 {[%emt 0:00:05]} 9. c3 {[%emt 0:01:14]} a6 {[%emt 0:06:12] C00: French: Unusual White 2nd moves.} 10. a3 {[%emt 0:06:46]} b5 {[%emt 0:02:40]} 11. Qe2 {[%emt 0:34:21]} Qc7 {[%emt 0:06:17] [#]} 12. exd5 $146 {[%emt 0:09:48]} ({Predecessor:} 12. e5 Nd7 13. h4 h6 14. Nf1 O-O-O 15. h5 Rdg8 16. b4 c4 17. d4 Nb6 18. Bd2 {0-1 (56) Lebedukhin,A (2081)-Seryogin,P (2178) Gagarin 2009}) 12... Nxd5 {[%emt 0:03:39]} 13. Ne4 {[%emt 0:02:06]} O-O {[%emt 0:04:01]} 14. b4 {[%emt 0:09:31]} cxb4 {[%emt 0:09:31]} 15. axb4 {[%emt 0:00:05]} a5 {[%emt 0:02:39]} 16. bxa5 {[%emt 0:00:20]} Nxa5 {[%emt 0:00:51]} 17. Bb2 {[%emt 0:01:18]} Nf6 {[%emt 0:02:53]} 18. Nd4 {[%emt 0:03:33]} Qb6 {[%emt 0:04:05]} 19. Rab1 {[%emt 0:06:00] White is more active.} (19. Ba3 $14 Nxe4 20. Bxe4 (20. Bxe7 Nxc3 21. Qe5 Bxg2 $14) 20... Bxa3 21. Rxa3) 19... Nxe4 $1 $11 {[%emt 0:07:29]} 20. Bxe4 {[%emt 0:00:11]} Bxe4 {[%emt 0:02:17]} 21. dxe4 {[%emt 0:00:51]} Rab8 {[%emt 0:04:22]} 22. Bc1 {[%emt 0:02:53][%cal Rb1b5]} Qc5 {[%emt 0:10:32]} 23. Nxb5 {[%emt 0:01:40] Hoping for Ba3.} Nc4 {[%emt 0:00:12] Inhibits Ba3.} 24. Rb4 {[%emt 0:04:12]} Rfc8 {[%emt 0:02:04] [#]} 25. Na7 {[%emt 0:01:37]} Qxa7 {[%emt 0:12:29]} (25... Rxb4 26. Nxc8) 26. Rxc4 {[%emt 0:00:08]} Bc5 {[%emt 0:00:25][%cal Oc5f2] Strongly threatening ...Bxf2+!} 27. Be3 {[%emt 0:01:47]} Bxe3 {[%emt 0:00:10]} 28. Rxc8+ {[%emt 0:01:11]} Rxc8 {[%emt 0:00:02]} 29. Qxe3 $14 {[%emt 0:00:06] KQR-KQR} Qa5 {[%emt 0:00:20]} 30. Rd1 {[%emt 0:03:49]} h6 {[%emt 0:00:34]} 31. Rc1 {[%emt 0:06:49]} Rc4 {[%emt 0:00:10] The position is equal.} 32. Qd3 {[%emt 0:00:09]} Qc7 {[%emt 0:00:11]} 33. Qe3 {[%emt 0:02:31]} Qc6 {[%emt 0:00:06] Weighted Error Value: White=0.09 (flawless) /Black=0.08 (flawless)} 1/2-1/2

[Event "13th Chennai Open 2022"]
[Site "Chennai"]
[Date "2022.06.21"]
[Round "4.9"]
[White "Vijay, Anand M."]
[Black "Baghdasaryan, Vahe"]
[Result "0-1"]
[ECO "B30"]
[WhiteElo "1735"]
[BlackElo "2267"]
[Annotator "TA"]
[PlyCount "78"]
[EventDate "2022.06.19"]
[EventType "swiss"]
[EventCountry "IND"]
[SourceTitle "playchess.com"]
[Source "ChessBase"]
[SourceQuality "1"]
[TimeControl "5400+30"]

{[%evp 10,78,16,20,14,14,27,27,30,19,24,21,67,61,77,80,88,94,75,21,78,0,-14,-7,0,0,0,0,-7,-89,-85,-88,-96,-91,-87,-65,-93,-77,-34,-40,-42,-40,0,-272,-281,-263,-282,-292,-302,-290,-279,-303,-300,-447,-435,-400,-402,-434,-416,-504,-496,-589,-579,-556,-491,-570,-566,-749,-733,-728,-690]} 1. e4 {[%emt 0:00:16]} c5 {[%emt 0:00:12]} 2. Nc3 {[%emt 0:00:08]} Nc6 {[%emt 0:00:20]} 3. Bb5 {[%emt 0:00:09]} Nd4 {[%emt 0:01:15]} 4. Nf3 {[%emt 0:00:08]} e6 {[%emt 0:00:36]} 5. O-O {[%emt 0:00:21]} a6 {[%emt 0:01:21]} 6. Bd3 {[%emt 0:00:20]} Nc6 {[%emt 0:00:06] B30: Sicilian: 2...Nc6 3 Bb5, lines without ...g6.} 7. b3 {[%emt 0:02:39] 7.e5 is more advanced technology.} g5 {[%emt 0:00:08]} 8. Bb2 {[%emt 1:30:29][%cal Oc3d5]} Bg7 {[%emt 0:00:10] White has an edge.} 9. Na4 {[%emt 0:07:01][%csl LRc5,LRg7]} Bxb2 {[%emt 0:03:01]} 10. Nxb2 {[%emt 0:00:06]} g4 {[%emt 0:05:50]} (10... h5 $11) 11. Ne1 $14 {[%emt 0:00:28] [#]} Nf6 $146 {[%emt 0:01:15]} ({Predecessor:} 11... h5 12. c3 Nge7 13. f4 d5 14. Qe2 Qc7 15. Bc2 b6 16. exd5 exd5 17. Nbd3 Rh6 {1-0 (35) Martinez Duany,L (2528)-Nagy,G (2474) Famalicao 2018}) 12. c3 {[%emt 0:05:38]} d5 {[%emt 0:21:48]} 13. Qe2 {[%emt 0:00:00]} dxe4 {[%emt 0:07:19]} 14. Bc2 {[%emt 0:01:00]} ({White should play} 14. Bxe4 $16 Nxe4 15. Qxe4) 14... e5 {[%emt 0:05:51]} (14... h5 $11) 15. d3 {[%emt 0:00:00]} (15. Na4 $16) 15... Nd5 $11 {[%emt 0:00:28]} 16. Nd1 {[%emt 0:00:00]} exd3 {[%emt 0:18:21]} 17. Nxd3 {[%emt 0:00:00]} Qe7 $36 {[%emt 0:00:08][%mdl 2048] next ...e4 is good for Black. White is under pressure.} 18. Re1 {[%emt 0:00:00][%cal Rd3e5]} f6 $1 {[%emt 0:00:10]} ({Don't do} 18... Bf5 19. Nxe5 (19. c4 Bxd3 20. Qxd3 Nf4 $17) 19... Bxc2 20. Nxc6 bxc6 21. c4 Qxe2 22. Rxe2+ Kd7 23. Rxc2 $16) 19. Qd2 {[%emt 0:00:00]} (19. f4 $11 {remains equal.}) 19... Be6 $17 {[%emt 0:00:29]} 20. Ne3 {[%emt 0:00:00]} O-O-O $1 {[%emt 0:00:39][%cal Ba8d8,Bd8d5,Bd5d2][%mdl 32] White must now prevent ...Nf4.} 21. Nxd5 {[%emt 0:00:00]} Rxd5 {[%emt 0:01:28]} 22. Qe3 {[%emt 0:00:00][%cal Od3f4]} Rhd8 {[%emt 0:01:56]} 23. Nf4 {[%emt 0:00:00]} exf4 {[%emt 0:01:52]} 24. Qxe6+ {[%emt 0:00:00]} Qxe6 {[%emt 0:00:05]} 25. Rxe6 {[%emt 0:00:00]} f5 {[%emt 0:00:11]} 26. c4 $2 {[%emt 0:00:00][%mdl 8192] [#]} (26. Rf6 $11) 26... Rd2 $1 $19 {[%emt 0:00:04]} 27. Bxf5 {[%emt 0:00:00] [#] Rxc6+ is the strong threat.} Nd4 {[%emt 0:28:57][%csl LRe6,LRf5]} 28. Bxg4 {[%emt 0:00:00] And now Re2+ would win.} Nxe6 {[%emt 0:00:11]} 29. Bxe6+ {[%emt 0:00:00][%mdl 4096] Endgame KRR-KRB} Kc7 {[%emt 0:00:02] ( -> ...Rd1+)} 30. Bd5 {[%emt 0:00:00]} Re8 {[%emt 0:00:15][%cal Od2a2] Hoping for ...Rxa2!} 31. g3 {[%emt 0:00:00]} (31. a4 {was necessary.}) 31... Ree2 {[%emt 0:00:26][%csl LRa2,LRf2]} 32. Rf1 {[%emt 0:00:00]} fxg3 {[%emt 0:00:35]} 33. hxg3 {[%emt 0:00:00]} Rxa2 {[%emt 0:00:08]} 34. f4 {[%emt 0:00:00]} Re3 {[%emt 0:28:10] Black is clearly winning.} 35. Bf3 {[%emt 0:00:00]} Rxb3 {[%emt 0:01:09]} 36. f5 {[%emt 0:00:00]} Raa3 {[%emt 0:03:31]} 37. Bd5 {[%emt 0:00:00]} Rxg3+ {[%emt 0:00:13]} 38. Kf2 {[%emt 0:00:00]} Rg5 {[%emt 0:02:33]} 39. Ke2 {[%emt 0:00:00]} Rh5 {[%emt 0:00:12] Weighted Error Value: White=0.47/Black=0.08 (flawless)} 0-1

[Event "13th Chennai Open 2022"]
[Site "Chennai"]
[Date "2022.06.21"]
[Round "4.10"]
[White "Jubin Jimmy"]
[Black "Majumder Shrayan"]
[Result "1-0"]
[ECO "D31"]
[WhiteElo "2259"]
[BlackElo "1741"]
[Annotator "TA"]
[PlyCount "83"]
[EventDate "2022.06.19"]
[EventType "swiss"]
[EventCountry "IND"]
[SourceTitle "playchess.com"]
[Source "ChessBase"]
[SourceQuality "1"]
[TimeControl "5400+30"]

{[%evp 9,83,22,19,25,28,20,23,23,30,37,25,27,42,11,35,21,18,-18,-22,-13,-17,-28,-10,-7,-8,6,-2,-52,-47,-45,-50,-60,-60,-61,-65,-61,-64,-62,-25,-27,-26,-40,-37,-29,-32,-19,-36,-76,-83,-76,0,-91,-18,-27,-22,-27,-37,-32,-16,-10,0,0,0,0,1751,1725,1521,1507,1179,1092,5073,5065,5065,5057,4133,1594]} 1. d4 {[%emt 0:00:07]} d5 {[%emt 0:00:15]} 2. c4 {[%emt 0:00:08]} e6 {[%emt 0:00:10]} 3. Nc3 {[%emt 0:00:09]} a6 {[%emt 0:00:11]} 4. cxd5 {[%emt 0:01:11]} exd5 {[%emt 0:00:08]} 5. Bf4 {[%emt 0:00:56]} Nf6 {[%emt 0:00:24]} 6. e3 {[%emt 0:00:11] D31: Queen's Gambit Declined: Semi-Slav without ...Nf6 (+ Marshall Gambit and Noteboom) and Exchange Variation lines without ...Nf6.} Bd6 {[%emt 0:00:46]} 7. Bg5 {[%emt 0:00:11]} c6 {[%emt 0:03:08]} 8. Bd3 {[%emt 0:00:32] White has an edge.} Be6 {[%emt 0:00:33] 8...Nbd7 is the modern continuation.} 9. Nge2 {[%emt 0:00:37]} Nbd7 {[%emt 0:01:03]} 10. Qc2 {[%emt 0:00:43]} Qc7 {[%emt 0:01:25] [#]} 11. h3 $146 {[%emt 0:00:36]} ({Predecessor:} 11. f3 O-O-O 12. O-O-O Kb8 13. Kb1 h6 14. Bh4 Rhe8 15. e4 dxe4 16. fxe4 g5 17. Bg3 Bxg3 18. Nxg3 {1-0 (42) Laurusas,T (2511)-Pantzar,M (2417) Chess.com INT 2020}) 11... h6 {[%emt 0:01:05]} (11... Nh5 $5 {[%cal Rh7h6]}) 12. Bh4 {[%emt 0:00:05]} Nh5 {[%emt 0:13:19][%cal Bf6h5,Bh5g7,Bg7f5][%mdl 32]} 13. Bf5 {[%emt 0:10:27]} Bxf5 {[%emt 0:09:51]} 14. Qxf5 {[%emt 0:00:07]} g6 {[%emt 0:03:56]} 15. Qf3 {[%emt 0:00:06]} Ng7 {[%emt 0:02:18]} 16. e4 {[%emt 0:06:01]} dxe4 {[%emt 0:02:36]} 17. Qxe4+ {[%emt 0:00:19]} Kf8 {[%emt 0:01:59]} 18. O-O {[%emt 0:04:07]} (18. g4 $11) 18... Nf5 $15 {[%emt 0:05:53] Threatens to win with ...Re8.} 19. Bg3 {[%emt 0:00:36]} Kg7 {[%emt 0:01:56]} 20. Qf3 {[%emt 0:03:58]} Nf6 {[%emt 0:02:20]} 21. Rad1 {[%emt 0:04:04]} Rad8 {[%emt 0:01:42]} 22. Rd3 {[%emt 0:05:17]} Rhe8 {[%emt 0:01:11]} 23. Rfd1 {[%emt 0:02:58][%cal Og3e5]} Qe7 {[%emt 0:16:01] Against Be5} 24. Be5 {[%emt 0:17:34]} Bxe5 {[%emt 0:09:45]} 25. dxe5 {[%emt 0:00:48]} Nd7 {[%emt 0:00:07][%cal Bf6d7,Bd7c5,Bc5e6][%mdl 32]} 26. Qf4 {[%emt 0:03:07] Qd2 is the strong threat.} Nc5 {[%emt 0:00:09]} 27. Rxd8 {[%emt 0:02:16]} Rxd8 {[%emt 0:00:30]} 28. g4 {[%emt 0:08:46]} Rxd1+ {[%emt 0:03:00]} 29. Nxd1 {[%emt 0:00:08] [#]} Qd8 {[%emt 0:00:05]} (29... Nh4 $1 $17) 30. Ne3 {[%emt 0:07:23] [#]} (30. gxf5 $11 {remains equal.} Qxd1+ 31. Kh2 Qxe2 32. fxg6) 30... Ne6 {[%emt 0:04:04]} ({Reject} 30... Nxe3 $6 31. Qxe3 Qd1+ 32. Kh2 $11) ({Black should try} 30... Nh4 $1 $17 31. Qb4 b6) 31. Nxf5+ $11 {[%emt 0:00:24]} gxf5 {[%emt 0:00:03][%mdl 4096] Endgame KQN-KQN} 32. Qe3 {[%emt 0:00:13]} fxg4 {[%emt 0:01:20]} 33. hxg4 {[%emt 0:00:02]} Qd1+ {[%emt 0:01:16]} 34. Kh2 {[%emt 0:00:32]} Qc2 {[%emt 0:04:44]} 35. Ng3 {[%emt 0:04:32]} Qxb2 {[%emt 0:01:54]} 36. Nf5+ {[%emt 0:01:31]} Kf8 $2 {[%emt 0:01:59][%mdl 8192]} (36... Kg8 $11) 37. Qxh6+ $18 {[%emt 0:00:31] White is clearly winning.} Ke8 {[%emt 0:00:07]} 38. Nd6+ {[%emt 0:00:08]} Kd7 {[%emt 0:00:17]} 39. Qf6 {[%emt 0:00:05]} Qxa2 {[%emt 0:01:14]} 40. Qxf7+ {[%emt 0:00:21]} Kd8 {[%emt 0:00:12]} 41. Nxb7+ {[%emt 0:00:25]} Kc8 {[%emt 0:00:05]} 42. Nc5 {[%emt 0:00:28] Weighted Error Value: White=0.11 (very precise) /Black=0.11 (very precise)} (42. Nd6+ $142 Kd8 43. Qa7) 1-0

[Event "13th Chennai Open 2022"]
[Site "Chennai"]
[Date "2022.06.21"]
[Round "4.11"]
[White "Prasannaa.s"]
[Black "Fedorov, Alexei"]
[Result "0-1"]
[ECO "B22"]
[WhiteElo "2164"]
[BlackElo "2529"]
[Annotator "TA"]
[PlyCount "104"]
[EventDate "2022.06.19"]
[EventType "swiss"]
[EventCountry "IND"]
[SourceTitle "playchess.com"]
[Source "ChessBase"]
[SourceQuality "1"]
[TimeControl "5400+30"]

{[%evp 16,104,18,17,17,13,26,15,10,-9,-6,-5,0,-5,0,0,35,11,30,3,41,-12,-13,-20,-22,0,0,-27,-31,-21,0,-28,-7,-12,-7,-9,-12,-12,0,-70,-72,-62,-68,-92,-63,-89,-45,-85,-27,-92,-75,-85,-76,-56,-43,-92,-92,-92,-92,-92,-92,-112,-103,-106,-101,-111,-108,-112,-100,-804,-728,-693,-638,-577,-295,-29964,-29966,-29970,-554,-29977,-29978,-29978,-29979,-29979,-29978,-29981,-29978,-29979,-29980,-29980,-29981]} 1. e4 {[%emt 0:00:03]} c5 {[%emt 0:00:06]} 2. c3 {[%emt 0:00:05][%cal Bc2c3,Bc3d4,Bd4e5][%mdl 32]} Nf6 {[%emt 0:00:13]} 3. e5 {[%emt 0:00:05]} Nd5 {[%emt 0:00:05]} 4. d4 {[%emt 0:00:02]} cxd4 {[%emt 0:00:06]} 5. Nf3 {[%emt 0:00:08]} d6 {[%emt 0:02:04]} 6. cxd4 {[%emt 0:00:17]} Nc6 {[%emt 0:00:50]} 7. Bc4 {[%emt 0:00:04]} Nb6 {[%emt 0:01:01]} 8. Bb5 {[%emt 0:00:05]} Bd7 {[%emt 0:00:13]} 9. Nc3 {[%emt 0:01:06] The main line 9.Nc3 scores better than 9.exd6.} dxe5 {[%emt 0:01:43] B22: Sicilian: 2 c3.} 10. dxe5 {[%emt 0:04:41]} g6 {[%emt 0:00:12]} 11. O-O {[%emt 0:06:29]} Bg7 {[%emt 0:00:19] The position is equal.} 12. Bf4 {[%emt 0:00:22]} O-O {[%emt 0:00:30]} 13. Qe2 {[%emt 0:00:39]} a6 {[%emt 0:04:08]} 14. Bxc6 {[%emt 0:00:13]} Bxc6 {[%emt 0:00:05]} 15. Rfd1 {[%emt 0:01:02]} Qc7 {[%emt 0:05:20] [#]} 16. Nd4 $146 {[%emt 0:00:34]} ({Predecessor:} 16. Rac1 Rad8 17. Nd4 e6 18. Ne4 Bxe5 19. Nf6+ {1-0 (19) Froehlich,R-Muenz,H GER corr 1986}) 16... Rac8 {[%emt 0:22:23]} 17. Bg3 {[%emt 0:02:31]} Nd5 {[%emt 0:03:10]} (17... Ba4 $5 {[%cal Ra4d1]} 18. Rd3 Qc5 $14) 18. Nxc6 {[%emt 0:11:03]} (18. e6 $14 Nxc3 19. bxc3) 18... Nxc3 $11 {[%emt 0:02:18]} 19. Nxe7+ $1 {[%emt 0:00:15]} Qxe7 {[%emt 0:00:04]} 20. bxc3 {[%emt 0:00:09]} Rxc3 {[%emt 0:00:19]} 21. Rac1 {[%emt 0:00:44]} Rxc1 {[%emt 0:04:28]} 22. Rxc1 {[%emt 0:00:07]} h5 {[%emt 0:05:23]} 23. f4 {[%emt 0:01:59]} Bh6 {[%emt 0:01:58]} 24. Rf1 {[%emt 0:05:35]} Rc8 {[%emt 0:04:00]} 25. f5 {[%emt 0:24:33]} Qc5+ {[%emt 0:04:19]} 26. Bf2 {[%emt 0:00:12]} Qc2 {[%emt 0:01:32]} 27. Qf3 {[%emt 0:02:29]} ({White should try} 27. Qxc2 $1 $11 Rxc2 28. fxg6) 27... Qxf5 $15 {[%emt 0:00:24]} 28. Qxb7 {[%emt 0:00:09][%cal Of2c5]} Qe6 {[%emt 0:03:15]} 29. a4 {[%emt 0:06:47]} Rc2 {[%emt 0:11:07]} 30. a5 {[%emt 0:06:44]} Qc6 {[%emt 0:05:55]} 31. Qb8+ {[%emt 0:05:03]} Qc8 {[%emt 0:01:23]} ({Better is} 31... Bf8 $17) 32. Qb6 {[%emt 0:04:32]} (32. Qxc8+ $11 Rxc8 33. Bd4) 32... Bg7 {[%emt 0:03:50]} (32... Qa8 $6 33. e6 $11) 33. Re1 {[%emt 0:03:39]} Rc1 {[%emt 0:02:52] aiming for ...Qc3.} (33... Qa8 $6 34. e6 fxe6 35. Qxe6+ Kh7 36. h3 $11) 34. Qe3 {[%emt 0:02:06]} Rc6 {[%emt 0:01:43]} 35. Qg5 {[%emt 0:01:29]} (35. h3 $15 {feels stronger.}) 35... Re6 $17 36. Bd4 {[%emt 0:00:30]} Qc7 $40 {[%mdl 128] Black goes for the king.} 37. Bb6 {[%emt 0:00:30]} Qc3 {[%cal Rc3e1]} (37... Rxe5 $6 38. Bxc7 Rxg5 39. Re8+ Kh7 40. Ra8 $11) 38. Rc1 {[%emt 0:00:30]} Qb2 ({Much weaker is} 38... Qxe5 $6 39. Rc8+ Kh7 40. Qxe5 Bxe5 41. Rf8 $15 (41. Ra8 g5 $15)) 39. Qd8+ {[%emt 0:00:30]} Kh7 40. Rf1 {[%emt 0:00:30]} Rxe5 ({Don't play} 40... Bxe5 $6 41. Rxf7+ Bg7 42. Qd1 $11) 41. Qd3 {[%emt 0:00:30]} Re2 ({And not} 41... Rg5 42. Rf2 Qa1+ 43. Qf1 $15) 42. Bf2 $2 {[%emt 0:00:30][%mdl 8192] [#] This costs White the game.} (42. Qd5 $17) 42... Rxf2 $1 $19 {[%mdl 512]} 43. Rxf2 {[%emt 0:00:30][%mdl 4096] Endgame KQR-KQB} Bd4 {[%mdl 64] Pin} 44. Qf1 {[%emt 0:00:30]} h4 {( -> ...Qd2)} 45. g3 $2 {[%emt 0:00:30]} (45. Qe1 $19) 45... hxg3 46. hxg3 {[%emt 0:00:30]} Kh6 (46... Kg7 $142 47. Kg2 Bxf2 48. Kh3 Qd2 49. Kg2 Bd4+ 50. Kf3 Qc3+ 51. Kg2 Qxa5 52. Kh3 Qh5+ 53. Kg2 Qd5+ 54. Kh2 a5 55. Qh3 a4 56. g4 Qe5+ 57. Qg3 Qxg3+ 58. Kxg3 a3 59. Kh4 a2 60. Kh3 a1=Q 61. Kg2 g5 62. Kf3 Qe1 63. Kg2 Qf2+ 64. Kh3 Qf1+ 65. Kh2 Be5#) 47. Kg2 {[%emt 0:00:30]} Qxf2+ {Black mates.} 48. Qxf2 {[%emt 0:00:30]} Bxf2 49. Kxf2 {[%emt 0:00:30]} Kg5 50. Kf3 {[%emt 0:00:30]} Kf5 51. g4+ {[%emt 0:00:30]} Kg5 52. Kg3 {[%emt 0:00:30]} f6 {Weighted Error Value: White=0.60/Black=0.29 (precise)} 0-1